[Event "Gibraltar Amateurs B 2020"]
[Site "Caleta"]
[Date "2020.01.29"]
[Round "5.9"]
[White "Dennis, Nigel W"]
[Black "Greco, Joseph"]
[Result "1-0"]
[ECO "B27"]
[WhiteElo "1784"]
[BlackElo "1691"]
[Annotator "NA RC"]
[PlyCount "147"]
[EventDate "2020.01.20"]
[EventType "swiss"]
[EventCountry "GGB"]
[SourceTitle "playchess.com"]
[Source "ChessBase"]
[SourceQuality "1"]
[TimeControl "6600+10"]

1. e4 {[%emt 0:00:00]} c5 {[%emt 0:00:04]} 2. Nf3 {[%emt 0:00:01]} h6 {[%emt 0:00:07]} 3. d4 {[%emt 0:01:01]} cxd4 {[%emt 0:00:43]} 4. Nxd4 {[%emt 0:00:07]} Nf6 {[%emt 0:00:20]} 5. Nc3 {[%emt 0:00:16]} d6 {[%emt 0:01:04]} 6. Be2 {[%emt 0:00:25]} a6 {[%emt 0:00:09]} 7. O-O {[%emt 0:01:12]} e5 {[%emt 0:01:10]} 8. Nb3 {[%emt 0:00:40]} g5 {[%emt 0:01:56]} 9. a4 {[%emt 0:05:53]} Nc6 {[%emt 0:04:36]} 10. Be3 {[%emt 0:01:48]} Be6 {[%emt 0:03:11]} 11. f3 {[%emt 0:07:06]} Nh5 {[%emt 0:01:51]} 12. Nd5 {[%emt 0:07:58]} Nf4 {[%emt 0:06:29]} 13. Bb6 {[%emt 0:05:32]} Qc8 {[%emt 0:01:03]} 14. Nc7+ {[%emt 0:01:35]} Ke7 {[%emt 0:00:22]} 15. Nxa8 {[%emt 0:00:18]} Qxa8 {[%emt 0:00:14]} 16. Na5 {[%emt 0:03:25]} Nxa5 {[%emt 0:17:27]} 17. Bxa5 {[%emt 0:00:13]} Qa7+ {[%emt 0:00:25]} 18. Kh1 {[%emt 0:01:27]} h5 {[%emt 0:00:37]} 19. Bd2 {[%emt 0:06:04]} h4 {[%emt 0:02:34]} 20. Bxf4 {[%emt 0:02:43]} gxf4 {[%emt 0:00:06]} 21. Qe1 {[%emt 0:01:20]} h3 {[%emt 0:04:36]} 22. g3 {[%emt 0:00:56]} fxg3 {[%emt 0:01:54]} 23. Qxg3 {[%emt 0:00:32]} Bh6 {[%emt 0:11:37]} 24. Qh4+ {[%emt 0:00:46]} f6 {[%emt 0:00:23]} 25. Rg1 {[%emt 0:07:10]} Qe3 {[%emt 0:08:28]} 26. Bd1 {[%emt 0:05:51]} Rc8 {[%emt 0:11:39]} 27. Ra3 {[%emt 0:03:29]} Qc1 {[%emt 0:01:21]} 28. Rd3 {[%emt 0:01:24]} Qf4 {[%emt 0:17:14]} 29. Qxf4 {[%emt 0:02:13]} Bxf4 {[%emt 0:00:02]} 30. b3 {[%emt 0:00:52]} Bg5 {[%emt 0:01:22]} 31. c4 {[%emt 0:00:24]} a5 {[%emt 0:00:36]} 32. Be2 {[%emt 0:01:44]} b6 {[%emt 0:01:09]} 33. Rgd1 {[%emt 0:02:03]} Rc6 {[%emt 0:00:20]} 34. Bf1 {[%emt 0:00:26]} Bf4 {[%emt 0:00:30]} 35. Rb1 {[%emt 0:00:45]} Kd7 {[%emt 0:00:42]} 36. Rc3 {[%emt 0:00:55]} Bd2 {[%emt 0:00:35]} 37. Rc2 {[%emt 0:00:08]} Bb4 {[%emt 0:00:13]} 38. Bd3 {[%emt 0:01:34]} Bc5 {[%emt 0:00:11]} 39. Rf1 {[%emt 0:00:38]} Be3 {[%emt 0:00:12]} 40. Re2 {[%emt 0:00:26]} Bg5 {[%emt 0:00:49]} 41. Rb2 {[%emt 0:01:07]} Be3 {[%emt 0:01:56]} 42. Re2 {[%emt 0:01:09]} Bf4 {[%emt 0:00:03]} 43. Rg1 {[%emt 0:00:18]} Bg5 {[%emt 0:00:14]} 44. Rg3 {[%emt 0:00:31]} Rc8 {[%emt 0:00:21]} 45. Rb2 {[%emt 0:00:17]} Bc1 {[%emt 0:00:29]} 46. Rb1 {[%emt 0:00:11]} Bd2 {[%emt 0:00:22]} 47. Rg7+ {[%emt 0:00:47]} Kc6 {[%emt 0:00:08]} 48. Rh7 {[%emt 0:00:49]} Rc7 {[%emt 0:01:23]} 49. Rxc7+ {[%emt 0:01:33]} Kxc7 {[%emt 0:00:01]} 50. Rg1 {[%emt 0:00:16]} Bf4 {[%emt 0:00:31]} 51. Rg7+ {[%emt 0:00:14]} Kc6 {[%emt 0:00:18]} 52. Rh7 {[%emt 0:00:24]} Kc5 {[%emt 0:00:20]} 53. Bf1 {[%emt 0:00:15]} Kb4 {[%emt 0:00:24]} 54. Re7 {[%emt 0:01:55]} Bc8 {[%emt 0:00:20]} 55. Rc7 {[%emt 0:00:23]} Be6 {[%emt 0:01:09]} 56. Rc6 {[%emt 0:00:21]} Kxb3 {[%emt 0:00:11]} 57. Rxb6+ {[%emt 0:00:11]} Kxa4 {[%emt 0:00:16]} 58. Rxd6 {[%emt 0:00:12]} Bg8 {[%emt 0:00:42]} 59. c5 {[%emt 0:01:36]} Be3 {[%emt 0:00:18]} 60. c6 {[%emt 0:00:34]} Bb6 {[%emt 0:00:05]} 61. Bxh3 {[%emt 0:00:51]} Bc4 {[%emt 0:01:02]} 62. Rxf6 {[%emt 0:01:53]} Kb4 {[%emt 0:00:28]} 63. Be6 {[%emt 0:01:26]} Bb5 {[%emt 0:00:12]} 64. Bd5 {[%emt 0:00:39]} a4 {[%emt 0:00:08]} 65. Rf7 {[%emt 0:01:25]} a3 {[%emt 0:00:20]} 66. c7 {[%emt 0:01:23]} Ba6 {[%emt 0:00:24]} 67. Ba2 {[%emt 0:02:42]} Kc5 {[%emt 0:00:01]} 68. h4 {[%emt 0:01:07]} Kd6 {[%emt 0:00:36]} 69. h5 {[%emt 0:00:21]} Be3 {[%emt 0:00:01]} 70. Rf6+ {[%emt 0:00:41]} Kxc7 {[%emt 0:00:13]} 71. Rxa6 {[%emt 0:00:08]} Kb7 {[%emt 0:00:16]} 72. Rxa3 {[%emt 0:00:30]} Bf4 {[%emt 0:00:03]} 73. Bd5+ {[%emt 0:00:41]} Kb6 {[%emt 0:00:03]} 74. Ra8 {[%emt 0:00:20]} 1-0

[Event "Gibraltar Amateurs B 2020"]
[Site "Caleta"]
[Date "2020.01.29"]
[Round "5.10"]
[White "Waterfield, Mark"]
[Black "Dragic, Dragan"]
[Result "0-1"]
[ECO "C45"]
[WhiteElo "1688"]
[BlackElo "1781"]
[Annotator "NA RC"]
[PlyCount "68"]
[EventDate "2020.01.20"]
[EventType "swiss"]
[EventCountry "GGB"]
[SourceTitle "playchess.com"]
[Source "ChessBase"]
[SourceQuality "1"]
[TimeControl "6600+10"]

1. e4 {[%emt 0:00:00]} e5 {[%emt 0:01:51]} 2. Nf3 {[%emt 0:00:00]} Nc6 {[%emt 0:00:06]} 3. Nc3 {[%emt 0:00:00]} Nf6 {[%emt 0:00:05]} 4. d4 {[%emt 0:00:14]} exd4 {[%emt 0:00:46]} 5. Nxd4 {[%emt 0:00:12]} Nxd4 {[%emt 0:00:02]} 6. Qxd4 {[%emt 0:00:10]} d6 {[%emt 0:00:02]} 7. Bg5 {[%emt 0:14:26]} Be7 {[%emt 0:00:04]} 8. O-O-O {[%emt 0:01:13]} O-O {[%emt 0:02:47]} 9. f3 {[%emt 0:01:35]} a6 {[%emt 0:00:16]} 10. g4 {[%emt 0:01:33]} Be6 {[%emt 0:01:33]} 11. Kb1 {[%emt 0:03:17]} Nxe4 {[%emt 0:02:15]} 12. Nxe4 {[%emt 0:12:55]} Bxg5 {[%emt 0:00:22]} 13. Nxg5 {[%emt 0:00:04]} Qxg5 {[%emt 0:00:10]} 14. h4 {[%emt 0:00:08]} Qc5 {[%emt 0:01:59]} 15. Qd2 {[%emt 0:03:33]} Rfe8 {[%emt 0:00:45]} 16. Bd3 {[%emt 0:24:34]} b5 {[%emt 0:03:50]} 17. Rhg1 {[%emt 0:02:43]} Bc4 {[%emt 0:04:18]} 18. Be4 {[%emt 0:07:26]} d5 {[%emt 0:04:29]} 19. Qg5 {[%emt 0:08:09]} h6 {[%emt 0:02:56]} 20. Qh5 {[%emt 0:02:45]} Rad8 {[%emt 0:09:07]} 21. b3 {[%emt 0:10:46]} Qb6 {[%emt 0:05:08]} 22. Bf5 {[%emt 0:04:21]} Be2 {[%emt 0:01:23]} 23. Rde1 {[%emt 0:04:58]} Bxf3 {[%emt 0:02:39]} 24. Ref1 {[%emt 0:00:53]} Qe3 {[%emt 0:04:35]} 25. Bd3 {[%emt 0:01:20]} Re5 {[%emt 0:00:51]} 26. Re1 {[%emt 0:04:06]} Qxe1+ {[%emt 0:02:27]} 27. Rxe1 {[%emt 0:00:10]} Rxe1+ {[%emt 0:00:02]} 28. Kb2 {[%emt 0:00:21]} Be4 {[%emt 0:01:46]} 29. Qe5 {[%emt 0:01:27]} Rc8 {[%emt 0:04:25]} 30. Qe7 {[%emt 0:00:27]} b4 {[%emt 0:01:32]} 31. Qd7 {[%emt 0:00:05]} Rf8 {[%emt 0:00:15]} 32. Bxa6 {[%emt 0:00:20]} Rg1 {[%emt 0:02:46]} 33. Bc8 {[%emt 0:01:06]} Rg2 {[%emt 0:00:18]} 34. Qc6 {[%emt 0:00:12]} Rxc2+ {[%emt 0:00:21]} 0-1